[Event "Late-Titled-Tuesday-Blitz-May-28-2024"]
[Site "Chess.com"]
[Date "2024.05.28"]
[Round "1"]
[White "Sanyura"]
[Black "rionelG"]
[Result "1-0"]
[WhiteElo "2607"]
[BlackElo "2307"]
[TimeControl "180+1"]
[EndTime "14:06:18 PDT"]
[Termination "Sanyura won by resignation"]

1. Nf3 {[%clk 0:02:45.5]} 1... c5 {[%clk 0:02:56.7]} 2. c4 {[%clk 0:02:45]} 2...
Nc6 {[%clk 0:02:54.9]} 3. Nc3 {[%clk 0:02:45.1]} 3... g6 {[%clk 0:02:49.8]} 4.
e3 {[%clk 0:02:42.8]} 4... Bg7 {[%clk 0:02:48.7]} 5. d4 {[%clk 0:02:43.3]} 5...
cxd4 {[%clk 0:02:45]} 6. exd4 {[%clk 0:02:44.2]} 6... d6 {[%clk 0:02:31.4]} 7.
g3 {[%clk 0:02:39.3]} 7... Bg4 {[%clk 0:02:28.7]} 8. d5 {[%clk 0:02:36.5]} 8...
Nd4 {[%clk 0:02:08.5]} 9. Bg2 {[%clk 0:02:32.8]} 9... Qd7 {[%clk 0:01:39.2]} 10.
Be3 {[%clk 0:02:26.5]} 10... Bxf3 {[%clk 0:01:32.9]} 11. Bxf3 {[%clk 0:02:26.4]}
11... Nxf3+ {[%clk 0:01:30.6]} 12. Qxf3 {[%clk 0:02:27.3]} 12... Nf6 {[%clk
0:01:30.6]} 13. O-O {[%clk 0:02:25.2]} 13... O-O {[%clk 0:01:05.8]} 14. Bd4
{[%clk 0:02:24.7]} 14... Rac8 {[%clk 0:01:03.7]} 15. b3 {[%clk 0:02:23.9]} 15...
a6 {[%clk 0:01:03.4]} 16. a4 {[%clk 0:02:23.8]} 16... Ne8 {[%clk 0:00:52.9]} 17.
Bxg7 {[%clk 0:02:22.7]} 17... Nxg7 {[%clk 0:00:53.8]} 18. Rfe1 {[%clk
0:02:22.3]} 18... Rfe8 {[%clk 0:00:38.1]} 19. Kg2 {[%clk 0:02:13]} 19... Qf5
{[%clk 0:00:37.8]} 20. Qe3 {[%clk 0:01:46.6]} 20... Qf6 {[%clk 0:00:26.4]} 21.
Ne4 {[%clk 0:01:38]} 21... Qe5 {[%clk 0:00:26.5]} 22. Rad1 {[%clk 0:01:11.7]}
22... Nf5 {[%clk 0:00:26.1]} 23. Qd2 {[%clk 0:00:56.9]} 23... Ng7 {[%clk
0:00:18.6]} 24. g4 {[%clk 0:00:39.5]} 24... h5 {[%clk 0:00:17.4]} 25. f4 {[%clk
0:00:39.3]} 1-0

[Event "Late-Titled-Tuesday-Blitz-May-28-2024"]
[Site "Chess.com"]
[Date "2024.05.28"]
[Round "1"]
[White "Pawngobblerx2000"]
[Black "MatthewG-p4p"]
[Result "1-0"]
[WhiteElo "2490"]
[BlackElo "2840"]
[TimeControl "180+1"]
[EndTime "14:06:19 PDT"]
[Termination "Pawngobblerx2000 won by resignation"]

1. c4 {[%clk 0:03:00.6]} 1... e6 {[%clk 0:02:13.2]} 2. g3 {[%clk 0:03:00.2]}
2... d5 {[%clk 0:02:13.2]} 3. Bg2 {[%clk 0:03:01.1]} 3... Nf6 {[%clk 0:02:13.8]}
4. Nf3 {[%clk 0:03:02]} 4... dxc4 {[%clk 0:02:14.1]} 5. O-O {[%clk 0:03:02.9]}
5... a6 {[%clk 0:02:14.2]} 6. a4 {[%clk 0:02:59.2]} 6... Nc6 {[%clk 0:02:11.2]}
7. Na3 {[%clk 0:02:57.4]} 7... Bxa3 {[%clk 0:02:10.4]} 8. bxa3 {[%clk
0:02:52.6]} 8... e5 {[%clk 0:02:11.3]} 9. Bb2 {[%clk 0:02:50.5]} 9... Qe7 {[%clk
0:02:07.6]} 10. Qc2 {[%clk 0:02:49.8]} 10... Be6 {[%clk 0:02:06.5]} 11. Nxe5
{[%clk 0:02:45.8]} 11... Nxe5 {[%clk 0:01:59.6]} 12. Bxe5 {[%clk 0:02:46.7]}
12... c6 {[%clk 0:01:59.3]} 13. a5 {[%clk 0:02:38.8]} 13... Rd8 {[%clk
0:01:48.9]} 14. Rab1 {[%clk 0:02:34.7]} 14... Rd7 {[%clk 0:01:44.8]} 15. Rfd1
{[%clk 0:02:26.1]} 15... O-O {[%clk 0:01:44.2]} 16. d4 {[%clk 0:02:19.5]} 16...
cxd3 {[%clk 0:01:43.6]} 17. Rxd3 {[%clk 0:02:19.6]} 17... Rxd3 {[%clk
0:01:10.5]} 18. Qxd3 {[%clk 0:02:15.3]} 18... Rd8 {[%clk 0:01:03.3]} 19. Qc3
{[%clk 0:02:04.1]} 19... Nd5 {[%clk 0:00:57]} 20. Qb2 {[%clk 0:02:04.1]} 20...
f6 {[%clk 0:00:55.9]} 21. Bd4 {[%clk 0:02:00.8]} 21... Bf5 {[%clk 0:00:54.9]}
22. e4 {[%clk 0:01:51.3]} 22... c5 {[%clk 0:00:27.8]} 23. exf5 {[%clk
0:01:26.5]} 23... cxd4 {[%clk 0:00:26.7]} 24. Qxd4 {[%clk 0:01:27.4]} 24... Nc7
{[%clk 0:00:15.4]} 25. Qc4+ {[%clk 0:01:27.3]} 25... Kh8 {[%clk 0:00:16.2]} 26.
Rxb7 {[%clk 0:01:24.6]} 26... Qe1+ {[%clk 0:00:16.6]} 27. Qf1 {[%clk 0:01:22.2]}
27... Qxa5 {[%clk 0:00:15.9]} 28. Qc4 {[%clk 0:01:05.6]} 28... Nb5 {[%clk
0:00:11.1]} 29. Qf7 {[%clk 0:01:04.1]} 29... Rg8 {[%clk 0:00:10.2]} 30. Bd5
{[%clk 0:01:02]} 30... Qe1+ {[%clk 0:00:02.6]} 31. Kg2 {[%clk 0:01:02.4]} 31...
Qe8 {[%clk 0:00:03.4]} 32. Qxg8+ {[%clk 0:01:01.9]} 32... Qxg8 {[%clk
0:00:03.6]} 33. Bxg8 {[%clk 0:01:02.8]} 33... Nd6 {[%clk 0:00:03.7]} 34. Rb8
{[%clk 0:01:02.7]} 1-0

[Event "Late-Titled-Tuesday-Blitz-May-28-2024"]
[Site "Chess.com"]
[Date "2024.05.28"]
[Round "1"]
[White "Vladimir_Zakhartsov"]
[Black "Kombinator01"]
[Result "1-0"]
[WhiteElo "2863"]
[BlackElo "2475"]
[TimeControl "180+1"]
[EndTime "14:06:21 PDT"]
[Termination "Vladimir_Zakhartsov won by checkmate"]

1. d4 {[%clk 0:03:00]} 1... d5 {[%clk 0:02:59.8]} 2. c4 {[%clk 0:03:00]} 2... e6
{[%clk 0:02:59]} 3. Nf3 {[%clk 0:03:00.1]} 3... a6 {[%clk 0:02:57.4]} 4. cxd5
{[%clk 0:02:54.9]} 4... exd5 {[%clk 0:02:57.3]} 5. Nc3 {[%clk 0:02:55.2]} 5...
h6 {[%clk 0:02:57.6]} 6. Bf4 {[%clk 0:02:54.6]} 6... Nf6 {[%clk 0:02:58.3]} 7.
e3 {[%clk 0:02:54.1]} 7... Bd6 {[%clk 0:02:58.7]} 8. Ne5 {[%clk 0:02:54.1]} 8...
O-O {[%clk 0:02:48.7]} 9. Bd3 {[%clk 0:02:54.1]} 9... Be6 {[%clk 0:02:43.3]} 10.
O-O {[%clk 0:02:51.4]} 10... Nbd7 {[%clk 0:02:32.2]} 11. h3 {[%clk 0:02:48.1]}
11... Re8 {[%clk 0:02:24.1]} 12. Rc1 {[%clk 0:02:45.7]} 12... Qe7 {[%clk
0:02:12.3]} 13. Bh2 {[%clk 0:02:44.7]} 13... c6 {[%clk 0:02:09.2]} 14. f4 {[%clk
0:02:44.3]} 14... Nf8 {[%clk 0:02:00.7]} 15. Bg3 {[%clk 0:02:38]} 15... c5
{[%clk 0:01:58.7]} 16. Bh4 {[%clk 0:02:36.8]} 16... c4 {[%clk 0:01:52.7]} 17.
Bb1 {[%clk 0:02:35.7]} 17... b5 {[%clk 0:01:45.3]} 18. Ne2 {[%clk 0:02:35.6]}
18... N8h7 {[%clk 0:01:39.4]} 19. Bxh7+ {[%clk 0:01:55.4]} 19... Kxh7 {[%clk
0:01:37]} 20. Ng3 {[%clk 0:01:55.9]} 20... Qa7 {[%clk 0:01:26.4]} 21. Bxf6
{[%clk 0:01:19.3]} 21... gxf6 {[%clk 0:01:27.3]} 22. Nh5 {[%clk 0:01:19.4]}
22... fxe5 {[%clk 0:01:16.6]} 23. Nf6+ {[%clk 0:01:18.1]} 23... Kh8 {[%clk
0:01:09.6]} 24. fxe5 {[%clk 0:00:59.9]} 24... Bf8 {[%clk 0:01:01.8]} 25. Qh5
{[%clk 0:00:53.3]} 25... Bg7 {[%clk 0:01:00.3]} 26. Rf4 {[%clk 0:00:49.6]} 26...
b4 {[%clk 0:00:49.6]} 27. Rh4 {[%clk 0:00:47]} 27... c3 {[%clk 0:00:46.2]} 28.
Qg5 {[%clk 0:00:45.2]} 28... cxb2 {[%clk 0:00:15]} 29. Rxh6+ {[%clk 0:00:44.6]}
29... Bxh6 {[%clk 0:00:15.7]} 30. Qxh6# {[%clk 0:00:44.5]} 1-0

[Event "Late-Titled-Tuesday-Blitz-May-28-2024"]
[Site "Chess.com"]
[Date "2024.05.28"]
[Round "1"]
[White "cthake"]
[Black "Squirlolz"]
[Result "0-1"]
[WhiteElo "1764"]
[BlackElo "2538"]
[TimeControl "180+1"]
[EndTime "14:06:23 PDT"]
[Termination "Squirlolz won by checkmate"]

1. c4 {[%clk 0:02:59.4]} 1... b5 {[%clk 0:02:50.9]} 2. cxb5 {[%clk 0:02:55.5]}
2... a6 {[%clk 0:02:51.2]} 3. e3 {[%clk 0:02:50.3]} 3... g6 {[%clk 0:02:50.7]}
4. bxa6 {[%clk 0:02:48.1]} 4... Bg7 {[%clk 0:02:50.8]} 5. Nc3 {[%clk 0:02:43.8]}
5... c5 {[%clk 0:02:51]} 6. Nf3 {[%clk 0:02:40.1]} 6... Nf6 {[%clk 0:02:51.1]}
7. Be2 {[%clk 0:02:36.5]} 7... O-O {[%clk 0:02:51.1]} 8. O-O {[%clk 0:02:34.3]}
8... Bxa6 {[%clk 0:02:51.8]} 9. Bxa6 {[%clk 0:02:32.4]} 9... Nxa6 {[%clk
0:02:52.7]} 10. a3 {[%clk 0:02:31.3]} 10... d5 {[%clk 0:02:48.7]} 11. d4 {[%clk
0:02:29.2]} 11... c4 {[%clk 0:02:48.1]} 12. b4 {[%clk 0:02:27.5]} 12... cxb3
{[%clk 0:02:46.7]} 13. Qxb3 {[%clk 0:02:27.5]} 13... e6 {[%clk 0:02:45.8]} 14.
Nb5 {[%clk 0:02:24.6]} 14... Ne4 {[%clk 0:02:44.1]} 15. a4 {[%clk 0:02:22.5]}
15... Qd7 {[%clk 0:02:44.4]} 16. Ba3 {[%clk 0:02:21.8]} 16... Rfc8 {[%clk
0:02:44.8]} 17. Rfc1 {[%clk 0:02:21]} 17... h5 {[%clk 0:02:38.2]} 18. h3 {[%clk
0:02:18.7]} 18... Nc7 {[%clk 0:02:18.5]} 19. Nxc7 {[%clk 0:02:15.7]} 19... Rxc7
{[%clk 0:02:19.4]} 20. Rxc7 {[%clk 0:02:15.3]} 20... Qxc7 {[%clk 0:02:20.3]} 21.
Rc1 {[%clk 0:02:14.9]} 21... Qa7 {[%clk 0:02:20]} 22. Ne5 {[%clk 0:01:55.4]}
22... Bxe5 {[%clk 0:02:12]} 23. dxe5 {[%clk 0:01:54.4]} 23... Qxa4 {[%clk
0:02:12.1]} 24. Rc8+ {[%clk 0:01:49.5]} 24... Kg7 {[%clk 0:02:12.2]} 25. Qxa4
{[%clk 0:01:43.1]} 25... Rxa4 {[%clk 0:02:13.1]} 26. Bf8+ {[%clk 0:01:42.4]}
26... Kh7 {[%clk 0:02:11.1]} 27. Rc7 {[%clk 0:01:38]} 27... Kg8 {[%clk
0:02:09.5]} 28. Rc8 {[%clk 0:01:38.2]} 28... Rc4 {[%clk 0:01:58.4]} 29. Rd8
{[%clk 0:01:32.8]} 29... Kh7 {[%clk 0:01:47.6]} 30. Rd7 {[%clk 0:01:30.7]} 30...
Rc8 {[%clk 0:01:36.8]} 31. Ba3 {[%clk 0:01:15.5]} 31... Kg7 {[%clk 0:01:36]} 32.
g4 {[%clk 0:01:14.3]} 32... hxg4 {[%clk 0:01:33]} 33. hxg4 {[%clk 0:01:13.8]}
33... Rc2 {[%clk 0:01:30.9]} 34. f3 {[%clk 0:01:09]} 34... Ng5 {[%clk
0:01:30.6]} 35. f4 {[%clk 0:01:06.2]} 35... Nf3+ {[%clk 0:01:27.4]} 36. Kf1
{[%clk 0:01:05.4]} 36... g5 {[%clk 0:01:18.1]} 37. Rd8 {[%clk 0:01:01.1]} 37...
gxf4 {[%clk 0:01:11.4]} 38. exf4 {[%clk 0:01:01.1]} 38... Nh2+ {[%clk
0:01:11.3]} 39. Kg1 {[%clk 0:00:58.8]} 39... Nxg4 {[%clk 0:01:12.2]} 40. Bf8+
{[%clk 0:00:56.4]} 40... Kg6 {[%clk 0:01:11.9]} 41. Bd6 {[%clk 0:00:53.9]} 41...
Kf5 {[%clk 0:01:08.2]} 42. Rf8 {[%clk 0:00:52.4]} 42... Ke4 {[%clk 0:01:07.8]}
43. Rxf7 {[%clk 0:00:49.9]} 43... Kf3 {[%clk 0:01:07.9]} 44. Ba3 {[%clk
0:00:22.3]} 44... Rg2+ {[%clk 0:01:03.5]} 45. Kf1 {[%clk 0:00:21.7]} 45... Ne3+
{[%clk 0:01:03.8]} 46. Ke1 {[%clk 0:00:21.6]} 46... Re2# {[%clk 0:01:04.6]} 0-1

[Event "Late-Titled-Tuesday-Blitz-May-28-2024"]
[Site "Chess.com"]
[Date "2024.05.28"]
[Round "1"]
[White "robertoalejandro10"]
[Black "Rud_Makarian"]
[Result "0-1"]
[WhiteElo "2511"]
[BlackElo "2951"]
[TimeControl "180+1"]
[EndTime "14:06:25 PDT"]
[Termination "Rud_Makarian won by checkmate"]

1. Nf3 {[%clk 0:02:58.3]} 1... Nf6 {[%clk 0:03:00]} 2. b3 {[%clk 0:02:57.8]}
2... d5 {[%clk 0:02:58.2]} 3. Bb2 {[%clk 0:02:57.5]} 3... Bg4 {[%clk 0:02:58.8]}
4. g3 {[%clk 0:02:51.3]} 4... Bxf3 {[%clk 0:02:58.7]} 5. exf3 {[%clk 0:02:52.2]}
5... e6 {[%clk 0:02:57.9]} 6. Bg2 {[%clk 0:02:51.3]} 6... g6 {[%clk 0:02:57.6]}
7. O-O {[%clk 0:02:50.5]} 7... Bg7 {[%clk 0:02:58.1]} 8. d3 {[%clk 0:02:50.6]}
8... O-O {[%clk 0:02:58.7]} 9. f4 {[%clk 0:02:50.5]} 9... c5 {[%clk 0:02:59.1]}
10. Nd2 {[%clk 0:02:50.5]} 10... Nc6 {[%clk 0:02:59.7]} 11. Re1 {[%clk 0:02:41]}
11... Nd7 {[%clk 0:02:59.6]} 12. Bxg7 {[%clk 0:02:38.2]} 12... Kxg7 {[%clk
0:03:00.5]} 13. Nf3 {[%clk 0:02:38.5]} 13... Qf6 {[%clk 0:02:59.6]} 14. Qd2
{[%clk 0:02:17.3]} 14... Rfd8 {[%clk 0:02:53.5]} 15. c3 {[%clk 0:02:08.3]} 15...
b5 {[%clk 0:02:50.1]} 16. Rac1 {[%clk 0:02:07]} 16... Rac8 {[%clk 0:02:39.5]}
17. d4 {[%clk 0:02:00.7]} 17... a5 {[%clk 0:02:29]} 18. Bf1 {[%clk 0:01:40.1]}
18... c4 {[%clk 0:02:00.9]} 19. Ne5 {[%clk 0:01:23.1]} 19... Ndxe5 {[%clk
0:01:58.5]} 20. fxe5 {[%clk 0:01:21.4]} 20... Qe7 {[%clk 0:01:58.9]} 21. a4
{[%clk 0:00:59.8]} 21... b4 {[%clk 0:01:51.2]} 22. Red1 {[%clk 0:00:28.5]} 22...
cxb3 {[%clk 0:01:47.7]} 23. Bb5 {[%clk 0:00:22.2]} 23... bxc3 {[%clk 0:01:42.5]}
24. Rxc3 {[%clk 0:00:21.3]} 24... Nb4 {[%clk 0:01:42.8]} 25. Rxb3 {[%clk
0:00:18.4]} 25... Rc2 {[%clk 0:01:42.7]} 26. Qe3 {[%clk 0:00:16.6]} 26... Rdc8
{[%clk 0:01:41.5]} 27. Rd2 {[%clk 0:00:16.7]} 27... Rc1+ {[%clk 0:01:40.7]} 28.
Kg2 {[%clk 0:00:17.3]} 28... h6 {[%clk 0:01:28.3]} 29. h4 {[%clk 0:00:17]} 29...
Qd8 {[%clk 0:01:27.2]} 30. Qf3 {[%clk 0:00:16]} 30... Qe7 {[%clk 0:01:22.2]} 31.
Qf4 {[%clk 0:00:16]} 31... Re1 {[%clk 0:01:18.5]} 32. Rf3 {[%clk 0:00:15.9]}
32... Rcc1 {[%clk 0:01:15.6]} 33. Qf6+ {[%clk 0:00:15.4]} 33... Qxf6 {[%clk
0:01:15.4]} 34. Rxf6 {[%clk 0:00:15.2]} 34... Kf8 {[%clk 0:00:59]} 35. Rf3
{[%clk 0:00:13.2]} 35... Ke7 {[%clk 0:00:57.9]} 36. Kh2 {[%clk 0:00:10.1]} 36...
Rh1+ {[%clk 0:00:56.2]} 37. Kg2 {[%clk 0:00:10.2]} 37... Rcg1# {[%clk
0:00:56.6]} 0-1

[Event "Late-Titled-Tuesday-Blitz-May-28-2024"]
[Site "Chess.com"]
[Date "2024.05.28"]
[Round "1"]
[White "nocnypako"]
[Black "Quattroporte300"]
[Result "1-0"]
[WhiteElo "2690"]
[BlackElo "2398"]
[TimeControl "180+1"]
[EndTime "14:06:31 PDT"]
[Termination "nocnypako won by resignation"]

1. d4 {[%clk 0:02:58.4]} 1... d5 {[%clk 0:03:00.1]} 2. Bf4 {[%clk 0:02:57.3]}
2... Nf6 {[%clk 0:02:58.9]} 3. e3 {[%clk 0:02:57.3]} 3... g6 {[%clk 0:02:58]} 4.
Nf3 {[%clk 0:02:57.4]} 4... Bg7 {[%clk 0:02:58.5]} 5. Be2 {[%clk 0:02:46.5]}
5... c6 {[%clk 0:02:52.4]} 6. O-O {[%clk 0:02:44.7]} 6... O-O {[%clk 0:02:51.7]}
7. h3 {[%clk 0:02:44.7]} 7... Re8 {[%clk 0:02:50.5]} 8. c4 {[%clk 0:02:44.8]}
8... Nbd7 {[%clk 0:02:41.1]} 9. Nc3 {[%clk 0:02:44.5]} 9... dxc4 {[%clk
0:02:14.6]} 10. Bxc4 {[%clk 0:02:44.1]} 10... e6 {[%clk 0:02:12.2]} 11. Rc1
{[%clk 0:02:40]} 11... Nb6 {[%clk 0:02:11.5]} 12. Bb3 {[%clk 0:02:36.1]} 12...
Nfd5 {[%clk 0:02:08.3]} 13. Bh2 {[%clk 0:02:35.5]} 13... Bd7 {[%clk 0:02:06]}
14. Ne5 {[%clk 0:02:34.7]} 14... Qe7 {[%clk 0:01:56.3]} 15. Qf3 {[%clk
0:02:30.2]} 15... Rad8 {[%clk 0:01:54.5]} 16. Nxd7 {[%clk 0:02:19]} 16... Qxd7
{[%clk 0:01:41.3]} 17. Ne4 {[%clk 0:02:19]} 17... Qe7 {[%clk 0:01:40.1]} 18.
Rfd1 {[%clk 0:02:18.6]} 18... f5 {[%clk 0:01:28.4]} 19. Nc5 {[%clk 0:02:15.3]}
19... Nc8 {[%clk 0:01:12]} 20. e4 {[%clk 0:01:54.4]} 20... fxe4 {[%clk
0:01:11.1]} 21. Nxe4 {[%clk 0:01:54.4]} 21... Rf8 {[%clk 0:01:06.9]} 22. Qe2
{[%clk 0:01:54.5]} 22... Nf4 {[%clk 0:01:02.4]} 23. Bxf4 {[%clk 0:01:34.8]}
23... Rxf4 {[%clk 0:01:03.3]} 24. Nc5 {[%clk 0:01:29.7]} 24... Rfxd4 {[%clk
0:01:01.8]} 25. Rxd4 {[%clk 0:01:21.2]} 25... Bxd4 {[%clk 0:00:39.9]} 26. Nxe6
{[%clk 0:01:21.2]} 26... Kh8 {[%clk 0:00:12.5]} 27. Qd2 {[%clk 0:01:20]} 27...
Rd7 {[%clk 0:00:05.5]} 28. Nxd4 {[%clk 0:01:04.2]} 28... c5 {[%clk 0:00:05.4]}
29. Re1 {[%clk 0:01:04.3]} 29... Qd8 {[%clk 0:00:03.8]} 30. Qf4 {[%clk
0:00:53.1]} 30... cxd4 {[%clk 0:00:03.5]} 31. Qe5+ {[%clk 0:00:46.3]} 31... Rg7
{[%clk 0:00:03.1]} 32. Qe8+ {[%clk 0:00:45.6]} 1-0

[Event "Late-Titled-Tuesday-Blitz-May-28-2024"]
[Site "Chess.com"]
[Date "2024.05.28"]
[Round "1"]
[White "hansen"]
[Black "Love7Unicorn"]
[Result "1-0"]
[WhiteElo "3057"]
[BlackElo "2530"]
[TimeControl "180+1"]
[EndTime "14:06:35 PDT"]
[Termination "hansen won on time"]

1. e4 {[%clk 0:03:00.5]} 1... c5 {[%clk 0:02:53.2]} 2. Nf3 {[%clk 0:03:00.5]}
2... d6 {[%clk 0:02:53.2]} 3. d4 {[%clk 0:03:00.5]} 3... cxd4 {[%clk 0:02:54.1]}
4. Nxd4 {[%clk 0:03:01.2]} 4... Nf6 {[%clk 0:02:54.3]} 5. Nc3 {[%clk 0:03:01.2]}
5... g6 {[%clk 0:02:54.6]} 6. Be2 {[%clk 0:03:00.9]} 6... Bg7 {[%clk 0:02:54.4]}
7. Nb3 {[%clk 0:03:01.3]} 7... O-O {[%clk 0:02:54.6]} 8. O-O {[%clk 0:03:01.6]}
8... Nc6 {[%clk 0:02:55]} 9. Re1 {[%clk 0:03:01.6]} 9... Be6 {[%clk 0:02:54.5]}
10. Bf1 {[%clk 0:03:01.1]} 10... a5 {[%clk 0:02:53.7]} 11. a4 {[%clk 0:02:57.1]}
11... Rc8 {[%clk 0:02:42.4]} 12. Nd5 {[%clk 0:02:55.5]} 12... Ne5 {[%clk
0:02:28.6]} 13. c3 {[%clk 0:02:50.8]} 13... Re8 {[%clk 0:02:17.1]} 14. h3 {[%clk
0:02:38.6]} 14... Nc4 {[%clk 0:01:37.7]} 15. Ra2 {[%clk 0:01:58.9]} 15... Nb6
{[%clk 0:01:19.9]} 16. Nxf6+ {[%clk 0:01:52.5]} 16... Bxf6 {[%clk 0:01:19.8]}
17. Bb5 {[%clk 0:01:51]} 17... Nd7 {[%clk 0:01:09.6]} 18. Ra1 {[%clk 0:01:49.1]}
18... Bg7 {[%clk 0:01:05.7]} 19. Be3 {[%clk 0:01:41.2]} 19... Rf8 {[%clk
0:01:02.1]} 20. Nd4 {[%clk 0:01:29.4]} 20... Bc4 {[%clk 0:00:58.5]} 21. Bxc4
{[%clk 0:01:29.4]} 21... Rxc4 {[%clk 0:00:59.4]} 22. Qb3 {[%clk 0:01:29.9]}
22... Rc7 {[%clk 0:00:38.1]} 23. Nb5 {[%clk 0:01:28.3]} 23... Nc5 {[%clk
0:00:37.3]} 24. Qd5 {[%clk 0:01:23.2]} 24... Rc6 {[%clk 0:00:32.8]} 25. Bxc5
{[%clk 0:01:15.6]} 25... dxc5 {[%clk 0:00:30]} 26. Rad1 {[%clk 0:01:15.4]} 26...
Qb8 {[%clk 0:00:20.5]} 27. e5 {[%clk 0:01:11.9]} 27... Rfc8 {[%clk 0:00:18.2]}
28. f4 {[%clk 0:01:07.1]} 28... b6 {[%clk 0:00:13.7]} 29. Qd7 {[%clk 0:01:02.4]}
29... Bf8 {[%clk 0:00:12.3]} 30. Rd2 {[%clk 0:00:52.4]} 30... Re6 {[%clk
0:00:08.2]} 31. h4 {[%clk 0:00:43.6]} 31... h5 {[%clk 0:00:07.9]} 32. g3 {[%clk
0:00:43.8]} 32... Bg7 {[%clk 0:00:07.7]} 33. Red1 {[%clk 0:00:42.1]} 1-0

[Event "Late-Titled-Tuesday-Blitz-May-28-2024"]
[Site "Chess.com"]
[Date "2024.05.28"]
[Round "1"]
[White "AradNazari"]
[Black "TheoSlade"]
[Result "1-0"]
[WhiteElo "2785"]
[BlackElo "2448"]
[TimeControl "180+1"]
[EndTime "14:06:35 PDT"]
[Termination "AradNazari won by resignation"]

1. e4 {[%clk 0:02:56.7]} 1... e5 {[%clk 0:03:00.1]} 2. f4 {[%clk 0:02:56.1]}
2... exf4 {[%clk 0:03:00.2]} 3. Nf3 {[%clk 0:02:56.6]} 3... g5 {[%clk
0:03:00.9]} 4. h4 {[%clk 0:02:56.5]} 4... g4 {[%clk 0:03:01.5]} 5. Ne5 {[%clk
0:02:57.1]} 5... Nf6 {[%clk 0:03:01.7]} 6. Nxg4 {[%clk 0:02:56.7]} 6... Nxe4
{[%clk 0:02:59.9]} 7. d3 {[%clk 0:02:54.1]} 7... Ng3 {[%clk 0:02:55.8]} 8. Bxf4
{[%clk 0:02:54.6]} 8... Nxh1 {[%clk 0:02:40.9]} 9. Qe2+ {[%clk 0:02:53.9]} 9...
Qe7 {[%clk 0:02:34.4]} 10. Nf6+ {[%clk 0:02:54.4]} 10... Kd8 {[%clk 0:02:34.3]}
11. Bxc7+ {[%clk 0:02:55.3]} 11... Kxc7 {[%clk 0:02:34.1]} 12. Nd5+ {[%clk
0:02:56.2]} 12... Kd8 {[%clk 0:02:29.3]} 13. Nxe7 {[%clk 0:02:57.1]} 13... Bxe7
{[%clk 0:02:29.5]} 14. Qf3 {[%clk 0:02:34.4]} 14... Bxh4+ {[%clk 0:02:24.8]} 15.
Kd2 {[%clk 0:02:35]} 15... Ng3 {[%clk 0:02:07.5]} 16. Na3 {[%clk 0:02:30.8]}
16... Bg5+ {[%clk 0:02:02.1]} 17. Kc3 {[%clk 0:02:22.5]} 17... Nxf1 {[%clk
0:01:58.8]} 18. Rxf1 {[%clk 0:02:23]} 18... f6 {[%clk 0:01:55.4]} 19. Nb5 {[%clk
0:02:14.3]} 19... Nc6 {[%clk 0:01:51.4]} 20. Qg3 {[%clk 0:01:56.5]} 20... b6
{[%clk 0:01:41.6]} 21. Re1 {[%clk 0:01:40.1]} 21... Ne5 {[%clk 0:01:36]} 22.
Rxe5 {[%clk 0:01:37.3]} 22... Ba6 {[%clk 0:01:19.8]} 23. Rxg5 {[%clk 0:01:26.3]}
23... fxg5 {[%clk 0:01:01.4]} 24. Qc7+ {[%clk 0:00:59.7]} 24... Ke7 {[%clk
0:00:59.1]} 25. Qe5+ {[%clk 0:01:00.2]} 25... Kf7 {[%clk 0:00:52.9]} 26. Nd6+
{[%clk 0:01:00.4]} 26... Kg6 {[%clk 0:00:45.5]} 27. Qf5+ {[%clk 0:00:58.1]}
27... Kh5 {[%clk 0:00:32.3]} 28. Nf7 {[%clk 0:00:32.4]} 28... h6 {[%clk
0:00:26.9]} 29. Ne5 {[%clk 0:00:31.1]} 29... Rac8+ {[%clk 0:00:16]} 30. Kd4
{[%clk 0:00:30]} 1-0

[Event "Late-Titled-Tuesday-Blitz-May-28-2024"]
[Site "Chess.com"]
[Date "2024.05.28"]
[Round "1"]
[White "Onthequiet"]
[Black "whiteshirt_boi"]
[Result "0-1"]
[WhiteElo "2451"]
[BlackElo "2797"]
[TimeControl "180+1"]
[EndTime "14:06:36 PDT"]
[Termination "whiteshirt_boi won by resignation"]

1. d4 {[%clk 0:02:59.7]} 1... Nf6 {[%clk 0:02:59.7]} 2. Nf3 {[%clk 0:03:00]}
2... e6 {[%clk 0:03:00.2]} 3. c4 {[%clk 0:02:59.6]} 3... d5 {[%clk 0:02:59.8]}
4. Nc3 {[%clk 0:02:58.6]} 4... Bb4 {[%clk 0:02:56]} 5. a3 {[%clk 0:02:57.8]}
5... Bxc3+ {[%clk 0:02:55.9]} 6. bxc3 {[%clk 0:02:58.5]} 6... dxc4 {[%clk
0:02:55.4]} 7. Qa4+ {[%clk 0:02:57.9]} 7... Nbd7 {[%clk 0:02:51.9]} 8. Qxc4
{[%clk 0:02:57.8]} 8... O-O {[%clk 0:02:52.6]} 9. Bg5 {[%clk 0:02:57]} 9... b6
{[%clk 0:02:52.5]} 10. e3 {[%clk 0:02:56.7]} 10... a5 {[%clk 0:02:43.9]} 11. Qc6
{[%clk 0:02:27.8]} 11... Ba6 {[%clk 0:02:29.6]} 12. Bxa6 {[%clk 0:02:19.9]}
12... Rxa6 {[%clk 0:02:30.5]} 13. Ne5 {[%clk 0:02:06.6]} 13... Nxe5 {[%clk
0:02:28.6]} 14. dxe5 {[%clk 0:02:05.9]} 14... Qd5 {[%clk 0:02:25.4]} 15. Qxd5
{[%clk 0:01:56.8]} 15... Nxd5 {[%clk 0:02:26.3]} 16. c4 {[%clk 0:01:53.9]} 16...
Nc3 {[%clk 0:02:25.9]} 17. f3 {[%clk 0:01:42.7]} 17... h6 {[%clk 0:02:17.1]} 18.
Bh4 {[%clk 0:01:23.2]} 18... Na4 {[%clk 0:02:06.1]} 19. Rd1 {[%clk 0:01:04.1]}
19... Nb2 {[%clk 0:01:58]} 20. Rd4 {[%clk 0:00:43.1]} 20... c5 {[%clk
0:01:49.8]} 21. Re4 {[%clk 0:00:33.8]} 21... Ra7 {[%clk 0:01:38.2]} 22. Ke2
{[%clk 0:00:33.5]} 22... Rd7 {[%clk 0:01:37]} 23. Rb1 {[%clk 0:00:32.5]} 23...
Na4 {[%clk 0:01:37.2]} 24. Rc1 {[%clk 0:00:31.4]} 24... g5 {[%clk 0:01:33.4]}
25. Be1 {[%clk 0:00:28]} 25... Kg7 {[%clk 0:01:30.8]} 26. h4 {[%clk 0:00:28]}
26... Kg6 {[%clk 0:01:31.1]} 27. g4 {[%clk 0:00:26.9]} 27... Rfd8 {[%clk
0:01:30.7]} 28. h5+ {[%clk 0:00:27.2]} 28... Kg7 {[%clk 0:01:31.2]} 29. f4
{[%clk 0:00:27.6]} 29... Rd3 {[%clk 0:01:22]} 30. Ra1 {[%clk 0:00:23.1]} 30...
Rb3 {[%clk 0:01:15]} 31. fxg5 {[%clk 0:00:23.1]} 31... hxg5 {[%clk 0:01:14.7]}
32. Kf3 {[%clk 0:00:12.5]} 32... Rdd3 {[%clk 0:01:11.2]} 33. Ra2 {[%clk
0:00:08.7]} 33... Nb2 {[%clk 0:01:01.4]} 34. Bh4 {[%clk 0:00:04.7]} 34... gxh4
{[%clk 0:00:57.1]} 35. g5 {[%clk 0:00:05.6]} 35... Nd1 {[%clk 0:00:54.6]} 36.
Re2 {[%clk 0:00:04.5]} 36... Nc3 {[%clk 0:00:54.2]} 0-1